bitfinex/quotes_BTCUSD_20251230
["timestamp","ask_amount","ask_price","bid_price","bid_amount"]
[1767123414285,0.21551,88317.0,88313.0,0.01132336]
[1767123414487,0.00035496,88318.0,88313.0,0.01132336]
[1767123414688,0.00035496,88318.0,88314.0,0.01132323]
[1767123414887,0.00035496,88318.0,88315.0,0.0113231]
[1767123415239,0.00035496,88318.0,88313.0,0.01132336]
[1767123415745,0.00035496,88318.0,88314.0,0.01132323]
[1767123415911,0.00035496,88318.0,88312.0,0.01132348]
[1767123416119,0.00035496,88318.0,88311.0,0.05661768]
[1767123416336,0.00035496,88318.0,88312.0,0.01132348]
[1767123416542,9.6e-07,88318.0,88314.0,0.01132323]
[1767123416936,9.6e-07,88318.0,88315.0,0.0113231]
[1767123417252,9.6e-07,88318.0,88313.0,0.01132336]
[1767123417653,9.6e-07,88318.0,88309.0,0.06797876]
[1767123417958,0.21551096,88318.0,88313.0,0.01132336]
[1767123418300,0.21551096,88318.0,88312.0,0.01132348]
[1767123418506,0.21551096,88318.0,88311.0,0.06794126]
[1767123418725,0.21551096,88318.0,88307.0,0.05662043]
[1767123418958,0.21551,88327.0,88310.0,0.01132374]
[1767123419317,0.01132233,88321.0,88310.0,7.237e-05]
[1767123419482,0.22617,88320.0,88310.0,7.237e-05]
[1767123420277,0.40793418,88452.0,88298.0,0.0004]
[1767123420278,0.22617,88304.0,88298.0,0.0004]
[1767123420441,0.22621504,88298.0,88292.0,0.0004]
[1767123420658,4.504e-05,88298.0,88292.0,0.00050661]
[1767123420862,0.01136,88303.0,88292.0,0.00050661]
[1767123420863,0.02268464,88303.0,88292.0,0.00050661]
[1767123421060,0.28278148,88322.0,88303.0,0.210856]
[1767123421263,0.01136,88322.0,88310.0,0.21066]
[1767123421514,0.22617,88329.0,88315.0,0.21066]
[1767123421515,0.23749131,88329.0,88315.0,0.21066]
[1767123421714,0.01132169,88326.0,88316.0,0.02264595]
[1767123421916,0.01136,88327.0,88315.0,0.2219831]
[1767123422079,0.01136,88327.0,88313.0,0.01132336]
[1767123422080,0.02268156,88327.0,88313.0,0.01132336]
[1767123422599,0.01136,88327.0,88313.0,0.01132336]
[1767123422795,0.01136,88327.0,88314.0,0.01132323]
[1767123423397,0.01136,88327.0,88315.0,0.0113231]
[1767123423795,0.01136,88327.0,88314.0,0.01132323]
[1767123423995,0.01136,88327.0,88315.0,0.0113231]
[1767123424566,0.23753,88327.0,88314.0,0.01132323]
[1767123424766,0.23753,88327.0,88315.0,0.0113231]
[1767123424966,0.23753,88327.0,88314.0,0.01132323]
[1767123425164,0.23753,88327.0,88315.0,0.0113231]
[1767123426542,0.23753,88327.0,88316.0,0.01132297]
[1767123426740,0.23753,88327.0,88316.0,0.01127978]
[1767123427082,0.23753,88327.0,88316.0,0.01132297]
[1767123427263,0.23753,88327.0,88315.0,0.0113231]
[1767123428070,0.23753,88327.0,88318.0,0.01132272]
[1767123428469,0.01136,88327.0,88317.0,0.01132284]
[1767123428890,0.01136,88327.0,88318.0,0.01132272]
[1767123429302,0.0001801,88328.0,88319.0,0.21066]
[1767123429496,1e-07,88328.0,88327.0,0.000551]
[1767123429677,1e-07,88328.0,88323.0,0.01132207]
[1767123429872,1e-07,88328.0,88322.0,0.0113222]
[1767123430079,1e-07,88328.0,88323.0,0.01132207]
[1767123430472,0.0003551,88328.0,88322.0,0.0113222]
[1767123430676,1e-07,88328.0,88322.0,0.0113222]
[1767123430876,1e-07,88328.0,88323.0,0.01132207]
[1767123431459,1e-07,88328.0,88324.0,0.01132195]
[1767123432278,1e-07,88328.0,88323.0,0.01132207]
[1767123432499,1e-07,88328.0,88324.0,0.01132195]
[1767123432898,1e-07,88328.0,88323.0,0.01132207]
[1767123433337,1e-07,88328.0,88324.0,0.01132195]
[1767123433518,1e-07,88328.0,88323.0,0.01132207]
[1767123433767,1e-07,88328.0,88324.0,0.01132195]
[1767123434598,0.000353,88324.0,88319.0,0.23334259]
[1767123434825,0.000353,88324.0,88321.0,0.01132233]
[1767123435202,1e-07,88328.0,88321.0,0.01132233]
[1767123435623,1e-07,88328.0,88322.0,0.0113222]
[1767123436414,1e-07,88328.0,88323.0,0.01132207]
[1767123436619,1e-07,88328.0,88324.0,0.22429]
[1767123437090,1e-07,88328.0,88324.0,0.23561195]
[1767123437236,1e-07,88328.0,88325.0,0.01132182]
[1767123437425,1e-07,88328.0,88325.0,0.06793033]
[1767123438264,1e-07,88328.0,88324.0,0.06793129]
[1767123438471,0.000353,88324.0,88320.0,0.01132246]
[1767123438633,0.000353,88324.0,88321.0,0.01132233]
[1767123438838,0.2211201,88328.0,88322.0,0.0113222]
[1767123439276,1e-07,88328.0,88323.0,0.01132207]
[1767123439938,1e-07,88328.0,88322.0,0.0113222]
[1767123440140,1e-07,88328.0,88323.0,0.01132207]
[1767123441134,1e-07,88328.0,88324.0,0.01132195]
[1767123441325,0.000353,88324.0,88322.0,0.0113222]
[1767123441471,1e-07,88328.0,88321.0,0.01132233]
[1767123442552,1e-07,88328.0,88322.0,0.0113222]
[1767123442870,1e-07,88328.0,88323.0,0.01132207]
[1767123443273,1e-07,88328.0,88324.0,0.01132195]
[1767123444727,1e-07,88328.0,88325.0,0.01132182]
[1767123445151,1e-07,88328.0,88324.0,0.01132195]
[1767123445306,1e-07,88328.0,88325.0,0.01132182]
[1767123446119,1e-07,88328.0,88323.0,0.06793198]
[1767123446325,1e-07,88328.0,88324.0,0.01132195]
[1767123446525,1e-07,88328.0,88323.0,0.01132207]
[1767123446726,0.000353,88323.0,88321.0,0.01132233]
[1767123447125,1e-07,88328.0,88321.0,0.01132233]
[1767123447563,1e-07,88328.0,88322.0,0.05661103]
[1767123447913,1e-07,88328.0,88322.0,0.0113222]
[1767123448944,1e-07,88328.0,88321.0,0.01132233]
[1767123449316,1e-07,88328.0,88325.0,0.01132182]
[1767123449517,1e-07,88328.0,88324.0,0.05660975]
[1767123449924,1e-07,88328.0,88325.0,0.01132182]
[1767123450744,1e-07,88328.0,88324.0,0.0679317]
[1767123451044,1e-07,88328.0,88324.0,0.01132195]
[1767123451230,1e-07,88328.0,88325.0,0.01132182]
[1767123452587,1e-07,88328.0,88327.0,0.22429]
[1767123452790,1e-07,88328.0,88327.0,0.24693313]
[1767123452949,0.02446141,88351.0,88340.0,0.0113199]
[1767123453131,0.000353,88340.0,88339.0,0.22429]
[1767123453757,0.01136,88350.0,88339.0,0.23561002]
[1767123454366,0.01136,88350.0,88339.0,0.01132002]
[1767123454566,0.01136,88350.0,88340.0,0.0113199]
[1767123454772,0.01136,88350.0,88338.0,0.01132015]
[1767123454972,0.01136,88350.0,88337.0,0.06792119]
[1767123455169,0.01136,88350.0,88334.0,0.29221359]
[1767123455170,0.000903,88337.0,88334.0,0.23561066]
[1767123455379,0.011319,88347.0,88333.0,0.01132079]
[1767123455587,0.22112,88348.0,88338.0,0.01132015]
[1767123456898,0.22112,88348.0,88337.0,0.01132028]
[1767123459979,0.22112,88348.0,88336.0,0.06792247]
[1767123460875,0.22112,88348.0,88335.0,0.01132054]
[1767123461075,0.22112,88348.0,88336.0,0.01132041]
[1767123461277,0.000353,88336.0,88334.0,0.01132066]
[1767123461526,0.000353,88336.0,88332.0,0.05660462]
[1767123461527,0.000353,88336.0,88332.0,0.22429]
[1767123461644,0.00055,88334.0,88332.0,0.22429]
[1767123462302,0.01131925,88345.0,88332.0,0.22429]
[1767123462455,0.011319,88347.0,88333.0,0.01132079]
[1767123462655,0.23243887,88348.0,88334.0,0.01132066]
[1767123463654,0.011319,88347.0,88334.0,0.01132066]
[1767123464216,0.011319,88347.0,88333.0,0.01132079]
[1767123465846,0.011319,88347.0,88334.0,0.01132066]
[1767123466402,0.20699,88347.0,88332.0,0.01132092]
[1767123466602,0.01131951,88343.0,88330.0,0.46175731]
[1767123466808,0.01131925,88345.0,88330.0,0.46175731]
[1767123466990,0.01131925,88345.0,88332.0,0.01132092]
[1767123467185,0.01131913,88346.0,88332.0,0.01132092]
[1767123467619,0.218309,88347.0,88333.0,0.01132079]
[1767123468222,0.01131913,88346.0,88332.0,0.01132092]
[1767123468599,0.01131925,88345.0,88331.0,0.01132105]
[1767123468805,0.21830938,88344.0,88331.0,0.01132105]
[1767123469009,0.21830938,88344.0,88330.0,0.01132118]
[1767123469293,0.20699,88344.0,88332.0,0.01132092]
[1767123469528,0.20699,88344.0,88333.0,0.01132079]
[1767123469734,0.20699,88344.0,88332.0,0.01132092]
[1767123470194,0.20699,88344.0,88333.0,0.01132079]
[1767123470429,0.20699,88344.0,88332.0,0.01132092]
[1767123473156,0.20699,88344.0,88333.0,0.01132079]
[1767123473472,0.20699,88344.0,88330.0,0.06792661]
[1767123473644,0.20699,88344.0,88330.0,0.01132118]
[1767123474420,0.02738927,89482.0,88316.0,0.19082]
[1767123474421,0.01131977,88341.0,88316.0,0.1455]
[1767123474630,0.207343,88330.0,88317.0,0.02268284]
[1767123474760,0.01132092,88332.0,88318.0,0.01132272]
[1767123474965,0.01132079,88333.0,88320.0,0.45043613]
[1767123474966,0.21831079,88333.0,88320.0,0.45043613]
[1767123475240,0.20699,88333.0,88320.0,0.45043613]
[1767123475412,0.20699,88333.0,88321.0,0.01132233]
[1767123475591,0.20699,88333.0,88320.0,0.01132246]
[1767123475786,0.20699,88333.0,88321.0,0.01132233]
[1767123476398,0.20699,88333.0,88320.0,0.01132246]
[1767123476937,0.20699,88333.0,88321.0,0.01132233]
[1767123478454,0.20699,88333.0,88320.0,0.01132246]
[1767123478632,0.20699,88333.0,88321.0,0.01132233]
[1767123478966,0.20699,88333.0,88322.0,0.0113222]
[1767123479171,0.20699,88333.0,88323.0,0.01132207]
[1767123479732,0.20699,88333.0,88320.0,0.01132246]
[1767123479958,0.20699,88333.0,88321.0,0.01132233]
[1767123480850,0.20699,88333.0,88320.0,0.01132246]
[1767123481050,0.20699,88333.0,88321.0,0.01132233]
[1767123481259,0.20699,88333.0,88320.0,0.01132246]
[1767123481587,0.20699,88333.0,88321.0,0.01132233]
[1767123481923,0.01136,88335.0,88322.0,0.0113222]
[1767123482127,0.01136,88335.0,88323.0,0.01132207]
[1767123482336,0.01136,88335.0,88322.0,0.0113222]
[1767123482555,0.01136,88335.0,88323.0,0.01132207]
[1767123482802,0.2317,88335.0,88324.0,0.01132195]
[1767123483117,0.2317,88335.0,88323.0,0.01132207]
[1767123483432,0.2317,88335.0,88324.0,0.01132195]
[1767123483887,0.2317,88335.0,88323.0,0.01132207]
[1767123484087,0.2317,88335.0,88321.0,0.06793355]
[1767123484587,0.2317,88335.0,88322.0,0.0113222]
[1767123486357,0.24302054,88335.0,88322.0,0.0113222]
[1767123486565,0.2317,88335.0,88323.0,0.01132207]
[1767123486767,0.2317,88335.0,88322.0,0.0113222]
[1767123486969,0.2317,88335.0,88323.0,0.01132207]
[1767123490080,0.2317,88335.0,88321.0,0.06793355]
[1767123490279,0.24302054,88335.0,88322.0,0.0113222]
[1767123490499,0.2317,88335.0,88322.0,0.0113222]
[1767123490664,0.2317,88335.0,88321.0,0.06793355]
[1767123490864,0.2317,88335.0,88322.0,0.0113222]
[1767123491687,0.2317,88335.0,88323.0,0.01132207]
[1767123493026,0.2317,88335.0,88322.0,0.0113222]
[1767123493738,0.24302054,88335.0,88322.0,0.0113222]
[1767123493903,0.2317,88335.0,88322.0,0.0113222]
[1767123494341,0.2317,88335.0,88323.0,0.01132207]
[1767123495617,0.22034,88344.0,88335.0,0.000196]
[1767123495838,0.01136,88343.0,88335.0,0.000196]
[1767123496044,0.02267951,88343.0,88329.0,0.21551131]
[1767123496360,0.01136,88343.0,88329.0,0.21551131]
[1767123496538,0.01136,88343.0,88332.0,0.01132092]
[1767123496739,0.01136,88343.0,88331.0,0.01132105]
[1767123497792,0.01136,88343.0,88330.0,0.01132118]
[1767123500884,0.01136,88343.0,88331.0,0.01132105]
[1767123502102,0.01136,88343.0,88330.0,0.01132118]
[1767123502602,0.01136,88343.0,88331.0,0.01132105]
[1767123503609,0.01136,88343.0,88330.0,0.01132118]
[1767123504008,0.01132002,88339.0,88329.0,0.20419]
[1767123504214,0.01132002,88339.0,88313.0,0.08154864]
[1767123504215,0.19797,88328.0,88318.0,0.01136]
[1767123504454,0.20929143,88328.0,88318.0,0.01136]
[1767123504594,0.19797,88328.0,88318.0,0.02268272]
[1767123504791,0.01132092,88332.0,88318.0,0.02268272]
[1767123505217,0.19797,88333.0,88319.0,0.01132259]
[1767123505511,0.19797,88333.0,88324.0,0.01132195]
[1767123506194,0.19797,88333.0,88323.0,0.06793208]
[1767123506454,0.19797,88333.0,88323.0,0.01132207]
[1767123508622,0.19797,88333.0,88324.0,0.01132195]
[1767123508953,0.19797,88333.0,88323.0,0.01132207]
[1767123509157,0.19797,88333.0,88324.0,0.01132195]
[1767123509773,0.19797,88333.0,88325.0,0.01132182]
[1767123509972,0.19797,88333.0,88324.0,0.01132195]
[1767123510471,0.19797,88333.0,88325.0,0.01132182]
[1767123510697,0.01131938,88344.0,88325.0,0.01132182]
[1767123510907,0.01136,88343.0,88333.0,0.000196]
[1767123511286,0.01136,88343.0,88335.0,0.01132054]
[1767123511872,0.01136,88343.0,88334.0,0.01132066]
[1767123513104,0.01136,88343.0,88333.0,0.01132079]
[1767123513302,0.01136,88343.0,88332.0,0.01132092]
[1767123513526,0.01136,88343.0,88331.0,0.06792571]
[1767123513893,0.20933,88343.0,88332.0,0.01132092]
[1767123514097,0.20933,88343.0,88330.0,0.06792671]
[1767123514238,0.20933,88343.0,88332.0,0.01132092]
[1767123515022,0.20933,88343.0,88331.0,0.01132105]
[1767123515784,0.20933,88343.0,88309.0,0.0454968]
[1767123515785,0.22064951,88343.0,88325.0,0.01132182]
[1767123516065,0.01132002,88339.0,88325.0,0.01132182]
[1767123516262,0.20928977,88341.0,88327.0,0.01132156]
[1767123517833,0.01132002,88339.0,88325.0,0.01132182]
[1767123518139,0.20929028,88337.0,88324.0,0.01132195]
[1767123518299,0.19797,88337.0,88322.0,0.2280222]
[1767123518501,0.19797,88337.0,88324.0,0.01132195]
[1767123518726,0.19797,88337.0,88323.0,0.01132207]
[1767123518727,0.20929028,88337.0,88323.0,0.01132207]
[1767123518924,0.19797,88337.0,88324.0,0.01132195]
[1767123519303,0.19797,88337.0,88325.0,0.06793093]
[1767123519621,0.01136,88337.0,88328.0,0.01132143]
[1767123519863,0.01136,88337.0,88329.0,0.01132131]
[1767123520472,0.01136,88337.0,88328.0,0.01132143]
[1767123520671,0.01136,88337.0,88329.0,0.01132131]
[1767123521044,0.01136,88337.0,88330.0,0.01132118]
[1767123521239,0.01136,88337.0,88329.0,0.01132131]
[1767123521433,0.01136,88337.0,88328.0,0.01132143]
[1767123521771,0.01136,88337.0,88330.0,0.01132118]
[1767123521979,0.01136,88337.0,88329.0,0.06792786]
[1767123522173,0.01136,88337.0,88329.0,0.01132131]
[1767123522755,0.01136,88337.0,88330.0,0.01132118]
[1767123523651,0.01136,88337.0,88329.0,0.01132131]
[1767123523984,0.01136,88337.0,88330.0,0.01132118]
[1767123525729,0.01136,88337.0,88329.0,0.01132131]
[1767123526151,0.01136,88337.0,88328.0,0.01132143]
[1767123526485,0.01136,88337.0,88329.0,0.01132131]
[1767123526632,0.01136,88337.0,88327.0,0.06792917]
[1767123526834,0.01136,88337.0,88328.0,0.01132143]
[1767123527914,0.01136,88337.0,88330.0,0.01132118]
[1767123528122,0.01136,88337.0,88331.0,0.01132105]
[1767123528415,0.01136,88337.0,88330.0,0.06792675]
[1767123528571,0.01136,88337.0,88331.0,0.01132105]
[1767123528782,0.011164,88337.0,88333.0,0.01132079]
[1767123529378,0.011164,88337.0,88332.0,0.01132092]
[1767123529584,0.011164,88337.0,88331.0,0.01132105]
[1767123530102,0.011164,88337.0,88332.0,0.01132092]
[1767123530268,0.011164,88337.0,88331.0,0.01132105]
[1767123530667,0.011164,88337.0,88332.0,0.01132092]
[1767123531066,0.011164,88337.0,88330.0,0.06792675]
[1767123531067,0.011164,88337.0,88330.0,0.01132118]
[1767123532434,0.011164,88337.0,88328.0,0.01132143]
[1767123533698,0.011164,88337.0,88330.0,0.01132118]
[1767123533829,0.011164,88337.0,88329.0,0.01132131]
[1767123534830,0.011164,88337.0,88330.0,0.01132118]
[1767123535770,0.011164,88337.0,88329.0,0.01132131]
[1767123536316,0.011164,88337.0,88328.0,0.01132143]
[1767123536521,0.011164,88337.0,88330.0,0.01132118]
[1767123536943,0.011164,88337.0,88329.0,0.01132131]
[1767123537375,0.011164,88337.0,88330.0,0.01132118]
[1767123537923,0.011164,88337.0,88331.0,0.01132105]
[1767123538423,0.011164,88337.0,88330.0,0.01132118]
[1767123538643,0.011164,88337.0,88331.0,0.01132105]
[1767123539581,0.011164,88337.0,88330.0,0.01132118]
[1767123541501,0.011164,88337.0,88331.0,0.01132105]
[1767123542983,0.011164,88337.0,88330.0,0.01132118]
[1767123543168,0.011164,88337.0,88331.0,0.01132105]
[1767123543396,0.0001802,88347.0,88335.0,0.01132054]
[1767123543551,0.01136,88346.0,88334.0,0.01132066]
[1767123543758,0.01136,88346.0,88336.0,0.01132041]
[1767123544770,0.01136,88346.0,88335.0,0.01132054]
[1767123544972,0.01136,88346.0,88333.0,0.19853]
[1767123544973,0.01136,88346.0,88333.0,0.01132079]
[1767123545193,0.01136,88346.0,88328.0,0.20985143]
[1767123545194,0.000549,88333.0,88328.0,0.20985143]
[1767123545396,0.000549,88333.0,88330.0,0.01132118]
[1767123545795,0.21319938,88344.0,88331.0,0.01132105]
[1767123545995,0.21337118,88344.0,88331.0,0.01132105]
[1767123546266,0.2020518,88344.0,88331.0,0.06792585]
[1767123547091,0.2020518,88344.0,88335.0,0.01132054]
[1767123547445,0.2020518,88344.0,88332.0,0.01132092]
[1767123547640,0.2020518,88344.0,88333.0,0.01132079]
[1767123547846,0.2020518,88344.0,88332.0,0.01132092]
[1767123548126,0.2020518,88344.0,88333.0,0.01132079]
[1767123548770,0.0001718,88344.0,88335.0,0.01132054]
[1767123548970,0.0001718,88344.0,88336.0,0.01132041]
[1767123549228,0.0001718,88344.0,88335.0,0.01132054]
[1767123549758,0.0001718,88344.0,88336.0,0.01132041]
[1767123550101,0.0001718,88344.0,88335.0,0.01132054]
[1767123550796,0.0001718,88344.0,88337.0,0.01132028]
[1767123550974,0.0001718,88344.0,88336.0,0.01132041]
[1767123551208,0.0001718,88344.0,88335.0,0.01132054]
[1767123551379,0.0001718,88344.0,88336.0,0.01132041]
[1767123553410,0.0001718,88344.0,88337.0,0.01132028]
[1767123553571,0.0001718,88344.0,88336.0,0.01132041]
[1767123553985,0.0001718,88344.0,88335.0,0.01132054]
[1767123554186,0.0001718,88344.0,88334.0,0.01132066]
[1767123554408,0.0001718,88344.0,88336.0,0.01132041]
[1767123554963,0.0001718,88344.0,88333.0,0.01132079]
[1767123555728,0.0001718,88344.0,88333.0,0.0679244]
[1767123555947,0.0001718,88344.0,88334.0,0.01132066]
[1767123556174,0.0001718,88344.0,88335.0,0.01132054]
[1767123556314,0.0001718,88344.0,88336.0,0.01132041]
[1767123557230,0.0001718,88344.0,88335.0,0.01132054]
[1767123563621,0.0001718,88344.0,88334.0,0.01132066]
[1767123564148,0.0001718,88344.0,88335.0,0.01132054]
[1767123564429,0.0001718,88344.0,88337.0,0.01132028]
[1767123564595,0.0001718,88344.0,88336.0,0.01132041]
[1767123564933,0.0001718,88344.0,88335.0,0.01132054]
[1767123565130,0.0001718,88344.0,88336.0,0.01132041]
[1767123566331,0.0001718,88344.0,88335.0,0.01132054]
[1767123566536,0.0001718,88344.0,88336.0,0.01132041]
[1767123566729,0.0001718,88344.0,88337.0,0.01132028]
[1767123566942,0.0001718,88344.0,88336.0,0.01132041]
[1767123567981,0.0001718,88344.0,88337.0,0.01132028]
[1767123568435,0.0001718,88344.0,88336.0,0.01132041]
[1767123569348,0.0001718,88344.0,88337.0,0.01132028]
[1767123570377,0.0001718,88344.0,88338.0,0.01132015]
[1767123570594,0.0001718,88344.0,88337.0,0.01132028]
[1767123570828,0.0001718,88344.0,88336.0,0.01132041]
[1767123571016,0.0001718,88344.0,88337.0,0.01132028]
[1767123571640,0.0001718,88344.0,88336.0,0.01132041]
[1767123571807,0.0001718,88344.0,88335.0,0.01132054]
[1767123571973,0.0001718,88344.0,88336.0,0.01132041]
[1767123572173,0.0001718,88344.0,88336.0,0.01127873]
[1767123572650,0.0001718,88344.0,88336.0,0.01132041]
[1767123574628,0.0001718,88344.0,88333.0,0.05660367]
[1767123575780,0.0001718,88344.0,88336.0,0.01132041]
[1767123575980,0.0001718,88344.0,88334.0,0.01132066]
[1767123576220,0.0001718,88344.0,88335.0,0.01132054]
[1767123579175,0.0001718,88344.0,88334.0,0.01132066]
[1767123579873,0.0001718,88344.0,88335.0,0.01132054]
[1767123580078,0.0001718,88344.0,88336.0,0.01132041]
[1767123580436,0.0001718,88344.0,88335.0,0.00727216]
[1767123580661,0.0001718,88344.0,88334.0,0.01132066]
[1767123582901,0.0001718,88344.0,88337.0,0.01132028]
[1767123583081,0.0001718,88344.0,88338.0,0.01132015]
[1767123583478,0.0001718,88344.0,88336.0,0.01132041]
[1767123583803,0.0001718,88344.0,88337.0,0.01132028]
[1767123583959,0.0001718,88344.0,88338.0,0.01132015]
[1767123585047,0.0001718,88344.0,88339.0,0.01132002]
[1767123585486,0.0001718,88344.0,88337.0,0.01132028]
[1767123585684,0.0001718,88344.0,88338.0,0.01132015]
[1767123585896,0.0001718,88344.0,88340.0,0.0113199]
[1767123586095,0.0001718,88344.0,88339.0,0.01132002]
[1767123586462,1.8e-06,88344.0,88341.0,0.19533]
[1767123586777,1.8e-06,88344.0,88341.0,0.20664977]
[1767123588327,1.8e-06,88344.0,88341.0,0.19533]
[1767123589432,1.8e-06,88344.0,88341.0,0.19479865]
[1767123589845,1.8e-06,88344.0,88339.0,0.20665002]
[1767123590008,1.8e-06,88344.0,88340.0,0.0113199]
[1767123590195,1.8e-06,88344.0,88339.0,0.20665002]
[1767123590395,1.8e-06,88344.0,88340.0,0.0113199]
[1767123591009,1.8e-06,88344.0,88339.0,0.20665002]
[1767123591636,1.8e-06,88344.0,88339.0,0.19533]
[1767123593555,1.8e-06,88344.0,88339.0,0.20665002]
[1767123594966,1.8e-06,88344.0,88339.0,0.19533]
[1767123595557,1.8e-06,88344.0,88339.0,0.20665002]
[1767123597215,1.8e-06,88344.0,88339.0,0.01132002]
[1767123599962,1.8e-06,88344.0,88338.0,0.01132015]
[1767123600429,1.8e-06,88344.0,88339.0,0.01132002]
[1767123600954,0.000549,88339.0,88337.0,0.06792133]
[1767123601295,1.8e-06,88344.0,88338.0,0.01132015]
[1767123601530,1.8e-06,88344.0,88337.0,0.01132028]
[1767123601729,1.8e-06,88344.0,88338.0,0.01132015]
[1767123602136,1.8e-06,88344.0,88337.0,0.01132028]
[1767123603124,1.8e-06,88344.0,88338.0,0.01132015]
[1767123603668,1.8e-06,88344.0,88339.0,0.01132002]
[1767123604479,0.19228,88338.0,88322.0,0.05661053]
[1767123604703,0.19228,88328.0,88320.0,0.1455]
[1767123604842,0.19228,88328.0,88320.0,0.14545673]
[1767123605045,0.19228,88328.0,88311.0,0.05661794]
[1767123605046,0.19228,88322.0,88308.0,0.0001456]
[1767123605266,0.19228,88322.0,88312.0,0.05661682]
[1767123605643,0.19228,88322.0,88318.0,0.01132272]
[1767123605846,0.01136,88325.0,88318.0,0.01132272]
[1767123605847,0.01136,88325.0,88319.0,0.01132259]
[1767123606179,0.19228,88323.0,88320.0,0.01132246]
[1767123606358,0.00055,88320.0,88319.0,0.01077359]
[1767123606524,0.00055,88320.0,88318.0,0.01132272]
[1767123606933,0.01132041,88336.0,88318.0,0.01132272]
[1767123606934,0.19228,88328.0,88320.0,0.01132246]
[1767123607146,0.19228,88328.0,88321.0,0.01132233]
[1767123607389,0.01136,88327.0,88322.0,0.0113222]
[1767123607789,0.01136,88327.0,88323.0,0.01132207]
[1767123608198,0.01136,88327.0,88324.0,0.01132195]
[1767123608400,0.01136,88327.0,88324.0,0.01128026]
[1767123608700,0.01136,88327.0,88323.0,0.01132207]
[1767123609106,0.01136,88327.0,88324.0,0.01132195]
[1767123610714,0.01136,88327.0,88324.0,0.01077195]
[1767123611134,0.01136,88327.0,88323.0,0.01132207]
[1767123611434,0.01136,88327.0,88322.0,0.0113222]
[1767123612513,0.01136,88327.0,88324.0,0.01132195]
[1767123612840,0.01136,88327.0,88322.0,0.0113222]
[1767123613041,0.19228,88333.0,88323.0,0.01132207]
[1767123613368,0.01136,88332.0,88324.0,0.01132195]
[1767123613560,0.01136,88332.0,88323.0,0.01132207]
[1767123613727,0.01136,88332.0,88324.0,0.01132195]
[1767123613930,0.01136,88332.0,88323.0,0.01132207]
[1767123614330,0.01136,88332.0,88324.0,0.01132195]
[1767123614592,0.01136,88332.0,88323.0,0.01132207]
[1767123614989,0.01136,88332.0,88324.0,0.01132195]
[1767123615196,0.19228,88331.0,88323.0,0.01132207]
[1767123615361,0.19228,88331.0,88321.0,0.01132233]
[1767123616005,0.19228,88331.0,88323.0,0.01132207]
[1767123616216,0.19228,88331.0,88322.0,0.0113222]
[1767123616821,0.19228,88331.0,88323.0,0.01132207]
[1767123617900,0.19228,88331.0,88322.0,0.0113222]
[1767123618432,0.19228,88331.0,88323.0,0.01132207]
[1767123618620,0.19228,88331.0,88321.0,0.01132233]
[1767123618804,0.19228,88331.0,88319.0,0.06793511]
[1767123619005,0.19228,88331.0,88321.0,0.01132233]
[1767123619753,0.19228,88331.0,88320.0,0.01132246]
[1767123619894,0.19228,88331.0,88321.0,0.01132233]
[1767123620093,0.19228,88331.0,88320.0,0.01132246]
[1767123620626,0.01136,88332.0,88321.0,0.01132233]
[1767123620827,0.01136,88332.0,88322.0,0.0113222]
[1767123621245,0.01136,88332.0,88321.0,0.01132233]
[1767123622017,0.1982,88332.0,88321.0,0.01132233]
[1767123622636,0.1982,88332.0,88322.0,0.0113222]
[1767123622962,0.1982,88332.0,88320.0,0.01132246]
[1767123623162,0.1982,88332.0,88321.0,0.01132233]
[1767123623869,0.1982,88332.0,88322.0,0.0113222]
[1767123625393,0.1982,88332.0,88323.0,0.01132207]
[1767123625744,0.1982,88332.0,88322.0,0.0116772]
[1767123626374,0.1982,88332.0,88323.0,0.01132207]
[1767123626813,0.1982,88332.0,88322.0,0.0116772]
[1767123626975,0.1982,88332.0,88322.0,0.01163359]
[1767123627875,0.1982,88332.0,88322.0,0.000314]
[1767123628723,0.01132182,88325.0,88308.0,0.0114696]
[1767123628928,0.01132182,88325.0,88309.0,0.05661937]
[1767123628929,0.18684,88320.0,88309.0,0.05661937]
[1767123629334,0.18684,88320.0,88308.0,0.0114696]
[1767123629335,0.186291,88320.0,88308.0,0.0114696]
[1767123629536,0.186291,88320.0,88313.0,0.01132336]
[1767123629741,0.186291,88320.0,88312.0,0.01132348]
[1767123629941,0.186291,88320.0,88313.0,0.01132336]
[1767123630148,0.186291,88320.0,88314.0,0.01132323]
[1767123630373,0.186291,88320.0,88313.0,0.01132336]
[1767123631620,0.01136,88324.0,88313.0,0.01132336]
[1767123631790,0.01136,88324.0,88314.0,0.01132323]
[1767123632572,0.00035507,88325.0,88316.0,0.01132297]
[1767123632779,0.18684,88343.0,88326.0,0.01132169]
[1767123633032,0.01136,88337.0,88326.0,0.01132169]
[1767123633206,0.01136,88337.0,88327.0,0.01132156]
[1767123633546,0.01136,88337.0,88326.0,0.01132169]
[1767123634840,0.01136,88337.0,88327.0,0.01132156]
[1767123635339,0.18684,88336.0,88328.0,0.01132143]
[1767123635702,0.18684,88336.0,88329.0,0.01132131]
[1767123635881,0.18684,88336.0,88328.0,0.01132143]
[1767123638101,0.18684,88336.0,88327.0,0.01132156]
[1767123639975,0.01136,88337.0,88327.0,0.01132156]
[1767123640179,0.18684,88336.0,88325.0,0.01132182]
[1767123640324,0.000549,88325.0,88320.0,0.01132246]
[1767123640531,0.01132054,88335.0,88320.0,0.01132246]
[1767123640735,0.01132079,88333.0,88319.0,0.01132259]
[1767123640954,0.01132066,88334.0,88320.0,0.01132246]
[1767123642047,0.01132079,88333.0,88319.0,0.01132259]
[1767123642250,0.01132066,88334.0,88320.0,0.01132246]
[1767123642649,0.06792436,88334.0,88318.0,0.01132272]
[1767123642844,0.01132092,88332.0,88317.0,0.21117284]
[1767123643054,0.01132092,88332.0,88317.0,0.26778702]
[1767123643254,0.01132092,88332.0,88318.0,0.18849]
[1767123644097,0.01132105,88331.0,88318.0,0.18849]
[1767123644389,0.01132105,88331.0,88318.0,0.19981272]
[1767123644549,0.01132092,88332.0,88318.0,0.19981272]
[1767123644752,0.0679252,88333.0,88321.0,0.18849]
[1767123644753,0.01132079,88333.0,88321.0,0.18849]
[1767123644953,0.01132105,88331.0,88321.0,0.18849]
[1767123645682,0.01132092,88332.0,88321.0,0.18849]
[1767123646491,0.20510105,88331.0,88317.0,0.02268284]
[1767123646686,0.19378,88331.0,88318.0,0.01132272]
[1767123647074,0.19378,88331.0,88319.0,0.01132259]
[1767123647277,0.01132079,88333.0,88320.0,0.01132246]
[1767123647617,0.01132066,88334.0,88320.0,0.01132246]
[1767123647962,0.01132079,88333.0,88319.0,0.01132259]